Workbook

Sheet About the Workbook
B14: INSTRUCTIONS
B15: All inputs are to be entered in the 'Dashboard'.
B16: Cells in light blue are input cells; other cells are proteteced to secure the integrity of the workbook.
B17: The Dashboard will display a summary of space planning results. For details of the calculations, click on the link to go to the 'Detailed Calculation'.
B19: HOW TO USE THIS WORKBOOK
B23: 1) ENTER the name of the Project / Department and the Project Address in the appropriate fields.
B25: 2) SELECT THE DESIRED ACTIVITY PROFILE Select from the combo box one of the 3 profiles based on the following:
C27: Best suited to organizations with limited interaction among colleagues or teams, and features the highest proportion of individual workpoints.
C29: Best suited to organizations with moderate interaction levels and has the most balanced distribution of workpoints, with an equal proportion of individual and collaborative workpoints.
C31: Best suited to organizations with a high degree of interaction between colleagues and among teams. It features the highest proportion of collaborative workpoints.
B33: 3) ENTER YOUR KNOWN DATA Enter the key data in the appropriate cells. Enter the new or existing space in m²u, and the appropriate population. This will determine the target occupancy which is used to calculate optimal workpoint ratios and distributions.
B35: 4) ADJUST EACH INDIVIDUAL WORKPOINT AS REQUIRED An ideal workpoint quantity distribution will be automatically calculated for each category. These can be manually modified to meet specific client requirements or preferences, within a predetermined range, by using the scroll bars located beside each cell. Cell will turn orange if a quantity is too high and cell will turn blue if a quantity is too low.
C36: - Scroll the bar to the right direction to increase quantities (increases by 1 unit)
C37: - Scroll the bar to the left direction to decrease quantities (decreases by 1 unit)
B38: Click on the button 'Reset'' to reset all cells to the suggested amounts.
B40: 5) CHECK-IN ON THE SURPLUS/DEFICIT AMOUNT TO ENSURE OPTIMAL SPACE PLANNING Should you exceed the available space, the number will turn RED to highlight the deficit. Should you have space remaining to plan with, the number will turn GREEN to show the surplus. Simply adjust workpoint quantities accordingly.
A42: CLICK HERE TO START PLANNING
B45: APPENDIX A | C45: GCworkplace workpoints at a glance
H47: VERSION RELEASE DATE: | I47: 2020-04-01

Sheet Dashboard
A1: GCworkplace Space Planning Workbook
C3: Project Name / Department | S3: Check remaining Surplus / Deficit: | T3: =AE13 -> 1.92
C4: Project Address
C8: Choose activity profile | D8: 1 | G8: WORKPOINT DISTRIBUTION COMPARISON | P8: SPACE PLANNING SUMMARY:
G9: Activity Profile | L9: Autonomous | M9: Balanced | N9: Interactive | AD9: Planning Space | AE9: =Calculations!K67 -> 708
G10: Individual Workpoints | L10: 50-65% | M10: 30-50% | N10: 5-30% | AD10: Total Individual Workpoints Space | AE10: =Calculations!K68 -> 380
C11: Input key data | G11: Collaborative and Support Spaces | L11: 35-50% | M11: 50-70% | N11: 70-95% | AD11: Total Collaborative Space | AE11: =Calculations!K69 -> 224
AD12: Total Support Space | AE12: =Calculations!K70 -> 102.08
C13: Space Solution in m2u: | D13: 1200 | E13: (NOT including any Special Purpose Space) | AD13: Remaining Surplus / Deficit | AE13: =AE9-AE10-AE11-AE12 -> 1.92
C14: Target occupancy*: | D14: =Calculations!I12 -> 100 | E14: *obtained by dividing the space solution by 12m2u | M14: Total Space = | N14: =Calculations!I17 -> 1200
C15: Actual Population: | E15: (excluding any occupants working in SPS) | M15: Circulation (35%) = | N15: =-Calculations!I18 -> -420
C16: Built-in growth: | D16: =Calculations!I14 -> 100 | M16: Building Fit Factor (6%) = | N16: =-Calculations!I19 -> -72 | AD16: =AD9 -> Planning Space | AE16: =AE9 -> 708
C17: Full Time SPS Population: | E17: (only when directly adjacent to the general office) | M17: REMAINING SPACE FOR PLANNING = | N17: =Calculations!I21 -> 708 | AD17: =IF(AE13>0,"Surplus","Deficit") -> Surplus | AE17: =ABS(AE13) -> 1.92
W19: Total allocated: | X19: =SUM(AE10:AE12) -> 706.08
C22: Adjust number of workpoints
B25: INDIVIDUAL WORKPOINTS | D25: Total number of seats | E25: Suggested quantity | F25: Quantity | H25: Average size | J25: Required area | K25: Min. / Max. sugg. qty. | L25: Gap analysis | N25: SUPPORT SPACES | Q25: Suggested quantity | R25: Quantity | T25: Average size | V25: Required area | W25: Min. / Max. sugg. qty. | X25: Gap analysis
B26: Primary Individual Open | C26: Typical Workstation | D26: =F26+F27+F28 -> 81 | E26: =Calculations!E27 -> 58 | F26: 58 | G26: x | H26: 3.5 | I26: = | J26: =Calculations!K27 -> 203 | K26: =HIDE!E8&" / "&HIDE!F8 -> 12 / 65 | L26: =IF(F26<HIDE!E8, "-"&HIDE!E8-F26, IF(F26>HIDE!F8, "+"&F26-HIDE!F8, 0)) -> 0 | N26: General Purpose Office | O26: Kitchenette | Q26: =Calculations!E50 -> 1 | R26: 1 | S26: x | T26: 15 | U26: = | V26: =Calculations!K50 -> 15 | W26: =HIDE!E25&" / "&Q26 -> 1 / 1 | X26: =IF(R26<HIDE!E25, "-"&HIDE!E25-R26, IF(R26>Q26, "+"&R26-Q26, 0)) -> 0 | AA26: =HIDE!M8 -> 3.5 | AB26: =IF($D$14<25,5,IF(AND($D$14>=25,$D$14<50),10,15)) -> 15
C27: Touchdown | E27: =Calculations!E28 -> 15 | F27: 15 | G27: x | H27: 1.5 | I27: = | J27: =Calculations!K28 -> 22.5 | K27: =HIDE!E9&" / "&HIDE!F9 -> 8 / 30 | L27: =IF(F27<HIDE!E9, "-"&HIDE!E9-F27, IF(F27>HIDE!F9, "+"&F27-HIDE!F9, 0)) -> 0 | O27: Equipment Area | Q27: =Calculations!E51 -> 2 | R27: 2 | S27: x | T27: 5 | U27: = | V27: =Calculations!K51 -> 10 | W27: =HIDE!E26&" / "&HIDE!F26 -> 1 / 2 | X27: =IF(R27<HIDE!E26, "-"&HIDE!E26-R27, IF(R27>HIDE!F26, "+"&R27-HIDE!F26, 0)) -> 0 | AA27: =HIDE!M9 -> 1.5 | AB27: =HIDE!M26 -> 5
C28: Focus Pod | E28: =Calculations!E29 -> 8 | F28: 8 | G28: x | H28: 4 | I28: = | J28: =Calculations!K29 -> 32 | K28: =HIDE!E10&" / "&HIDE!F10 -> 2 / 12 | L28: =IF(F28<HIDE!E10, "-"&HIDE!E10-F28, IF(F28>HIDE!F10, "+"&F28-HIDE!F10, 0)) -> 0 | O28: Lockers Area (area is per FTE) | Q28: =Calculations!E52 -> 100 | R28: 100 | S28: x | T28: 0.5 | U28: = | V28: =Calculations!K52 -> 50 | W28: =HIDE!E27&" / "&HIDE!F27 -> 50 / 125 | X28: =IF(R28<HIDE!E27, "-"&HIDE!E27-R28, IF(R28>HIDE!F27, "+"&R28-HIDE!F27, 0)) -> 0 | AA28: =HIDE!M10 -> 4 | AB28: =HIDE!M27 -> 0.5
B29: Primary Individual Enclosed | C29: Focus Room | D29: =F29+F30+F31 -> 9 | E29: =Calculations!E30 -> 9 | F29: 9 | G29: x | H29: 7.5 | I29: = | J29: =Calculations!K30 -> 67.5 | K29: =HIDE!E11&" / "&HIDE!F11 -> 4 / 12 | L29: =IF(F29<HIDE!E11, "-"&HIDE!E11-F29, IF(F29>HIDE!F11, "+"&F29-HIDE!F11, 0)) -> 0 | O29: Shared Storage | Q29: =Calculations!E53 -> 1 | R29: 1 | S29: x | T29: 10 | U29: = | V29: =Calculations!K53 -> 10 | W29: =HIDE!E28&" / "&HIDE!F28 -> 1 / 2 | X29: =IF(R29<HIDE!E28, "-"&HIDE!E28-R29, IF(R29>HIDE!F28, "+"&R29-HIDE!F28, 0)) -> 0 | AA29: =HIDE!M11 -> 7.5 | AB29: =HIDE!M28 -> 10
C30: Ministerial Dedicated (Deputy Head or Minister) | E30: =Calculations!E31 -> 0 | F30: 0 | G30: x | H30: 29 | I30: = | J30: =Calculations!K31 -> 0 | K30: =HIDE!E12&" / "&HIDE!F12 -> 0 / 0 | L30: =IF(F30<HIDE!E12, "-"&HIDE!E12-F30, IF(F30>HIDE!F12, "+"&F30-HIDE!F12, 0)) -> 0 | O30: Dedicated Server/Telecom Room - 1 per floor | Q30: =Calculations!E54 -> 1 | R30: 1 | S30: x | T30: 10 | U30: = | V30: =Calculations!K54 -> 10 | W30: N/A | X30: N/A | AA30: =HIDE!M12 -> 29 | AB30: =HIDE!M29 -> 10
C31: Study (3m2 per occupant, min. 10 occupants) | E31: =Calculations!E32 -> 0 | F31: 0 | G31: x | H31: 3 | I31: = | J31: =Calculations!K32 -> 0 | K31: =Calculations!E32&" / "&HIDE!F13 -> 0 / 20 | L31: =IF(F31<Calculations!E32, "-"&Calculations!E32-F31, IF(F31>HIDE!F13, "+"&F31-HIDE!F13, 0)) -> 0 | N31: Extra workpoints to support adjacent SPS population | O31: Phonebooth | Q31: =Calculations!E55 -> 0 | R31: 0 | S31: x | T31: 5 | U31: = | V31: =Calculations!K55 -> 0 | W31: =HIDE!E30&" / "&HIDE!F30 -> 0 / 0 | X31: =IF(R31<HIDE!E30, "-"&HIDE!E30-R31, IF(R31>HIDE!F30, "+"&R31-HIDE!F30, 0)) -> 0 | AA31: =HIDE!M13 -> 3 | AB31: =HIDE!M30 -> 5
B32: Secondary Individual | C32: Reflection Point | D32: =F32+F33+F34 -> 11 | E32: =Calculations!E33 -> 4 | F32: 4 | G32: x | H32: 5 | I32: = | J32: =Calculations!K33 -> 20 | K32: =HIDE!E14&" / "&HIDE!F14 -> 1 / 4 | L32: =IF(F32<HIDE!E14, "-"&HIDE!E14-F32, IF(F32>HIDE!F14, "+"&F32-HIDE!F14, 0)) -> 0 | O32: Lounge | Q32: =Calculations!E56 -> 0 | R32: 0 | S32: x | T32: 20 | U32: = | V32: =Calculations!K56 -> 0 | W32: =HIDE!E31&" / "&HIDE!F31 -> 0 / 0 | X32: =IF(R32<HIDE!E31, "-"&HIDE!E31-R32, IF(R32>HIDE!F31, "+"&R32-HIDE!F31, 0)) -> 0 | AA32: =HIDE!M14 -> 5 | AB32: =HIDE!M31 -> 20
C33: Active Workstation | E33: =Calculations!E34 -> 1 | F33: 1 | G33: x | H33: 5 | I33: = | J33: =Calculations!K34 -> 5 | K33: =HIDE!E15&" / "&HIDE!F15 -> 0 / 4 | L33: =IF(F33<HIDE!E15, "-"&HIDE!E15-F33, IF(F33>HIDE!F15, "+"&F33-HIDE!F15, 0)) -> 0 | O33: Work Room | Q33: =Calculations!E57 -> 0 | R33: 0 | S33: x | T33: 15 | U33: = | V33: =Calculations!K57 -> 0 | W33: =HIDE!E32&" / "&HIDE!F32 -> 0 / 0 | X33: =IF(R33<HIDE!E32, "-"&HIDE!E32-R33, IF(R33>HIDE!F32, "+"&R33-HIDE!F32, 0)) -> 0 | AA33: =HIDE!M15 -> 5 | AB33: =HIDE!M32 -> 15
C34: Phonebooth | E34: =Calculations!E35 -> 6 | F34: 6 | G34: x | H34: 5 | I34: = | J34: =Calculations!K35 -> 30 | K34: =HIDE!E16&" / "&HIDE!F16 -> 4 / 8 | L34: =IF(F34<HIDE!E16, "-"&HIDE!E16-F34, IF(F34>HIDE!F16, "+"&F34-HIDE!F16, 0)) -> 0 | O34: Kitchenette | Q34: =Calculations!E58 -> 0 | R34: 0 | S34: x | T34: 15 | U34: = | V34: =Calculations!K58 -> 0 | W34: =HIDE!E33&" / "&Q34 -> 0 / 0 | X34: =IF(R34<HIDE!E33, "-"&HIDE!E33-R34, IF(R34>Q34, "+"&R34-Q34, 0)) -> 0 | AA34: =HIDE!M16 -> 5 | AB34: =IF($D$14<25,5,IF(AND($D$14>=25,$D$14<50),10,15)) -> 15
C35: Total number of individual seats | D35: =SUM(D26:D34) -> 101 | I35: Total space for individual workpoints | J35: =SUM(J26:J34) -> 380 | O35: Lockers Area (area is per FTE) | Q35: =Calculations!E59 -> 0 | R35: 0 | S35: x | T35: 0.5 | U35: = | V35: =Calculations!K59 -> 0 | W35: =HIDE!E34&" / "&HIDE!F34 -> 0 / 0 | X35: =IF(R35<HIDE!E34, "-"&HIDE!E34-R35, IF(R35>HIDE!F34, "+"&R35-HIDE!F34, 0)) -> 0 | AB35: =HIDE!M34 -> 0.5
B36: COLLABORATIVE WORKPOINTS | D36: Total number of seats | E36: Suggested quantity | F36: Quantity | H36: Average size | J36: Required area | K36: Min. / Max. sugg. qty. | L36: Gap analysis | N36: Other | O36: Custom support space | Q36: =Calculations!E60 -> 1 | R36: 1 | S36: x | T36: =$N$17*0.01 -> 7.08 | U36: = | V36: =R36*T36 -> 7.08 | W36: =HIDE!E35&" / "&HIDE!F35 -> 0 / 11 | X36: =IF(R36<HIDE!E35, "-"&HIDE!E35-R36, IF(R36>HIDE!F35, "+"&R36-HIDE!F35, 0)) -> 0
B37: Collaborative Open | C37: Chat Point | D37: =SUM(F37)*4 -> 4 | E37: =Calculations!E39 -> 1 | F37: 1 | G37: x | H37: 3 | I37: = | J37: =Calculations!K39 -> 3 | K37: =HIDE!E17&" / "&HIDE!F17 -> 1 / 5 | L37: =IF(F37<HIDE!E17, "-"&HIDE!E17-F37, IF(F37>HIDE!F17, "+"&F37-HIDE!F17, 0)) -> 0 | O37: Custom Workpoint | Q37: =Calculations!E61 -> 0 | R37: 0 | S37: x | T37: 0 | U37: = | V37: =R37*T37 -> 0 | W37: =HIDE!E36&" / "&HIDE!F36 -> 0 / 0 | X37: =IF(R37<HIDE!E36, "-"&HIDE!E36-R37, IF(R37>HIDE!F36, "+"&R37-HIDE!F36, 0)) -> 0 | AA37: =HIDE!M17 -> 3
C38: Huddle | D38: =SUM(F38)*4 -> 8 | E38: =Calculations!E40 -> 2 | F38: 2 | G38: x | H38: 8 | I38: = | J38: =Calculations!K40 -> 16 | K38: =HIDE!E18&" / "&HIDE!F18 -> 1 / 6 | L38: =IF(F38<HIDE!E18, "-"&HIDE!E18-F38, IF(F38>HIDE!F18, "+"&F38-HIDE!F18, 0)) -> 0 | U38: Total space for support spaces | V38: =SUM(V26:V37) -> 102.08 | AA38: =HIDE!M18 -> 8
C39: Teaming Area | D39: =SUM(F39)*10 -> 10 | E39: =Calculations!E41 -> 1 | F39: 1 | G39: x | H39: 15 | I39: = | J39: =Calculations!K41 -> 15 | K39: =HIDE!E19&" / "&HIDE!F19 -> 1 / 4 | L39: =IF(F39<HIDE!E19, "-"&HIDE!E19-F39, IF(F39>HIDE!F19, "+"&F39-HIDE!F19, 0)) -> 0 | AA39: =HIDE!M19 -> 15
C40: Lounge | D40: =SUM(F40)*10 -> 10 | E40: =Calculations!E42 -> 1 | F40: 1 | G40: x | H40: 20 | I40: = | J40: =Calculations!K42 -> 20 | K40: =HIDE!E20&" / "&HIDE!F20 -> 1 / 2 | L40: =IF(F40<HIDE!E20, "-"&HIDE!E20-F40, IF(F40>HIDE!F20, "+"&F40-HIDE!F20, 0)) -> 0 | AA40: =HIDE!M20 -> 20
B41: Collaborative Enclosed | C41: Work Room | D41: =SUM(F41)*4 -> 8 | E41: =Calculations!E43 -> 2 | F41: 2 | G41: x | H41: 15 | I41: = | J41: =Calculations!K43 -> 30 | K41: =HIDE!E21&" / "&HIDE!F21 -> 2 / 6 | L41: =IF(F41<HIDE!E21, "-"&HIDE!E21-F41, IF(F41>HIDE!F21, "+"&F41-HIDE!F21, 0)) -> 0 | AA41: =HIDE!M21 -> 15
C42: Project Room | D42: =SUM(F42)*6 -> 6 | E42: =Calculations!E44 -> 1 | F42: 1 | G42: x | H42: 20 | I42: = | J42: =Calculations!K44 -> 20 | K42: =HIDE!E22&" / "&HIDE!F22 -> 0 / 6 | L42: =IF(F42<HIDE!E22, "-"&HIDE!E22-F42, IF(F42>HIDE!F22, "+"&F42-HIDE!F22, 0)) -> 0 | AA42: =HIDE!M22 -> 20
C43: Medium Meeting Room | D43: =SUM(F43)*12 -> 24 | E43: =Calculations!E45 -> 2 | F43: 2 | G43: x | H43: 30 | I43: = | J43: =Calculations!K45 -> 60 | K43: =HIDE!E23&" / "&HIDE!F23 -> 1 / 3 | L43: =IF(F43<HIDE!E23, "-"&HIDE!E23-F43, IF(F43>HIDE!F23, "+"&F43-HIDE!F23, 0)) -> 0 | AA43: =HIDE!M23 -> 30
C44: Large Meeting Room | D44: =SUM(F44)*20 -> 20 | E44: =Calculations!E46 -> 1 | F44: 1 | G44: x | H44: 60 | I44: = | J44: =Calculations!K46 -> 60 | K44: =HIDE!E24&" / "&HIDE!F24 -> 0 / 2 | L44: =IF(F44<HIDE!E24, "-"&HIDE!E24-F44, IF(F44>HIDE!F24, "+"&F44-HIDE!F24, 0)) -> 0 | AA44: =HIDE!M24 -> 60
C45: Estimated number of collaborative seats | D45: =SUM(D37:D44) -> 90 | I45: Total space for collaborative workpoints | J45: =SUM(J37:J44) -> 224
C89: AUTONOMOUS
C90: BALANCED
C91: INTERACTIVE

Sheet Calculations
A2: =IF(Dashboard!$D$8=1,"AUTONOMOUS",IF(Dashboard!$D$8=2,"BALANCED",IF(Dashboard!$D$8=3,"INTERACTIVE","N/A")))&" PROFILE" -> AUTONOMOUS PROFILE
B3: Project Name / Department | C3: =IF(Dashboard!D3<>"",Dashboard!D3,"n/a") -> n/a | N3: SPACE PLANNING SUMMARY
B4: Project Address | C4: =IF(Dashboard!D4<>"",Dashboard!D4,"n/a") -> n/a | N4: REMAINING SURPLUS / DEFICIT | O4: = | P4: =K71 -> 1.92
A8: KEY DATA (from Dashboard):
B10: Space Solution in m2u (NOT including any Special Purpose Space): | I10: =Dashboard!D13 -> 1200
H12: Target Occupancy*: | I12: =I10/12 -> 100
G13: Actual Population: | I13: =Dashboard!D15 -> 0
B14: Built-in growth: | I14: =I12-I13 -> 100
B15: Full Time Special Purpose Space Population: | I15: =Dashboard!D17 -> 0
H17: Total Space = | I17: =I10 -> 1200
H18: Circulation (35%)= | I18: =I17*0.35 -> 420
H19: Building Fit Factor (6%)= | I19: =I17*0.06 -> 72
H21: REMAINING SPACE FOR PLANNING = | I21: =I17 -SUM(I18) -SUM(I19) -> 708
A23: WORKPOINT QUANTITIES
A26: INDIVIDUAL WORKPOINTS | C26: Total number of seats | D26: Formula | E26: Suggested quantity | F26: rounded | G26: Adjust quantities as required | I26: Average size (m²) | K26: Required Area
A27: Primary Individual Open | B27: Typical Workstation | C27: =F27+F28+F29 -> 81 | D27: =CHOOSE(Dashboard!$D$8,HIDE!H8,HIDE!I8,HIDE!J8) -> 58 | E27: =ROUND($I$12*D27/100,0) -> 58 | F27: =ROUND(G27,0) -> 58 | G27: =Dashboard!F26 -> 58 | H27: x | I27: =Dashboard!H26 -> 3.5 | J27: = | K27: =F27*I27 -> 203
B28: Touchdown | D28: =CHOOSE(Dashboard!$D$8,HIDE!H9,HIDE!I9,HIDE!J9) -> 15 | E28: =ROUND($I$12*D28/100,0) -> 15 | F28: =ROUND(G28,0) -> 15 | G28: =Dashboard!F27 -> 15 | H28: x | I28: =Dashboard!H27 -> 1.5 | J28: = | K28: =F28*I28 -> 22.5
B29: Focus Pod | D29: =CHOOSE(Dashboard!$D$8,HIDE!H10,HIDE!I10,HIDE!J10) -> 8 | E29: 8 | F29: 8 | G29: =Dashboard!F28 -> 8 | H29: x | I29: =Dashboard!H28 -> 4 | J29: = | K29: 32
A30: Primary Individual Enclosed | B30: Focus Room | C30: =F30+F31+F32 -> 9 | D30: =CHOOSE(Dashboard!$D$8,HIDE!H11,HIDE!I11,HIDE!J11) -> 9 | E30: 9 | F30: 9 | G30: =Dashboard!F29 -> 9 | H30: x | I30: =Dashboard!H29 -> 7.5 | J30: = | K30: 67.5
B31: Ministerial Dedicated (Deputy Head or Minister) total includes 9m2 washroom. | D31: =CHOOSE(Dashboard!$D$8,HIDE!H12,HIDE!I12,HIDE!J12) -> 0 | E31: 0 | F31: 0 | G31: =Dashboard!F30 -> 0 | H31: x | I31: =Dashboard!H30 -> 29 | J31: = | K31: 0
B32: Study (3m2 per occupant, min. 10 occupants) | D32: =CHOOSE(Dashboard!$D$8,HIDE!H13,HIDE!I13,HIDE!J13) -> 0 | E32: =IF(HIDE!$E$13<10,0,HIDE!$E$13) -> 0 | F32: 0 | G32: =Dashboard!F31 -> 0 | H32: x | I32: =Dashboard!H31 -> 3 | J32: = | K32: 0
A33: Secondary Individual | B33: Reflection Point | C33: =F33+F34+F35 -> 11 | D33: =CHOOSE(Dashboard!$D$8,HIDE!H14,HIDE!I14,HIDE!J14) -> 4 | E33: =ROUND($I$12*D33/100,0) -> 4 | F33: 4 | G33: =Dashboard!F32 -> 4 | H33: x | I33: =Dashboard!H32 -> 5 | J33: = | K33: 20
B34: Active Workstation | D34: =CHOOSE(Dashboard!$D$8,HIDE!H15,HIDE!I15,HIDE!J15) -> 1 | E34: 1 | F34: 1 | G34: =Dashboard!F33 -> 1 | H34: x | I34: =Dashboard!H33 -> 5 | J34: = | K34: 5
B35: Phonebooth | D35: =CHOOSE(Dashboard!$D$8,HIDE!H16,HIDE!I16,HIDE!J16) -> 6 | E35: 6 | F35: 6 | G35: =Dashboard!F34 -> 6 | H35: x | I35: =Dashboard!H34 -> 5 | J35: = | K35: 30
B36: Total no. of individual seats | C36: =SUM(G27:G35) -> 101 | J36: Total space for individual workpoints | K36: =SUM(K27:K35) -> 380
A38: COLLABORATIVE WORKPOINTS | C38: Total number of seats | D38: Formula | E38: Suggested quantity | F38: rounded | G38: Adjust quantities as required | I38: Average size (m²) | K38: Required Area
A39: Collaborative Open | B39: Chat Point | C39: =SUM(F39)*4 -> 4 | D39: =CHOOSE(Dashboard!$D$8,HIDE!H17,HIDE!I17,HIDE!J17) -> 1 | E39: =ROUND($I$12*D39/100,0) -> 1 | F39: =ROUND(G39,0) -> 1 | G39: =Dashboard!F37 -> 1 | H39: x | I39: =Dashboard!H37 -> 3 | J39: = | K39: =F39*I39 -> 3
B40: Huddle | C40: =SUM(F40)*4 -> 8 | D40: =CHOOSE(Dashboard!$D$8,HIDE!H18,HIDE!I18,HIDE!J18) -> 2 | E40: 2 | F40: =ROUND(G40,0) -> 2 | G40: =Dashboard!F38 -> 2 | H40: x | I40: =Dashboard!H38 -> 8 | J40: = | K40: =F40*I40 -> 16
B41: Teaming Area | C41: =SUM(F41)*10 -> 10 | D41: =CHOOSE(Dashboard!$D$8,HIDE!H19,HIDE!I19,HIDE!J19) -> 1 | E41: 1 | F41: 1 | G41: =Dashboard!F39 -> 1 | H41: x | I41: =Dashboard!H39 -> 15 | J41: = | K41: 15
B42: Lounge | C42: =SUM(F42)*10 -> 10 | D42: =CHOOSE(Dashboard!$D$8,HIDE!H20,HIDE!I20,HIDE!J20) -> 1 | E42: 1 | F42: 1 | G42: =Dashboard!F40 -> 1 | H42: x | I42: =Dashboard!H40 -> 20 | J42: = | K42: 20
A43: Collaborative Enclosed | B43: Work Room | C43: =SUM(F43)*4 -> 8 | D43: =CHOOSE(Dashboard!$D$8,HIDE!H21,HIDE!I21,HIDE!J21) -> 2 | E43: 2 | F43: 2 | G43: =Dashboard!F41 -> 2 | H43: x | I43: =Dashboard!H41 -> 15 | J43: = | K43: 30
B44: Project Room | C44: =SUM(F44)*6 -> 6 | D44: =CHOOSE(Dashboard!$D$8,HIDE!H22,HIDE!I22,HIDE!J22) -> 1 | E44: 1 | F44: 1 | G44: =Dashboard!F42 -> 1 | H44: x | I44: =Dashboard!H42 -> 20 | J44: = | K44: 20
B45: Medium Meeting Room | C45: =SUM(F45)*12 -> 24 | D45: =CHOOSE(Dashboard!$D$8,HIDE!H23,HIDE!I23,HIDE!J23) -> 1.8 | E45: 2 | F45: 2 | G45: =Dashboard!F43 -> 2 | H45: x | I45: =Dashboard!H43 -> 30 | J45: = | K45: 60
B46: Large Meeting Room | C46: =SUM(F46)*20 -> 20 | D46: =CHOOSE(Dashboard!$D$8,HIDE!H24,HIDE!I24,HIDE!J24) -> 0.8 | E46: 1 | F46: 1 | G46: =Dashboard!F44 -> 1 | H46: x | I46: =Dashboard!H44 -> 60 | J46: = | K46: 60
A47: Estimated number of collaborative seats | C47: =SUM(C39:C46) -> 90 | J47: Total space for collaborative workpoints | K47: =SUM(K39:K46) -> 224
A49: SUPPORT SPACES | C49: Total number of seats | D49: Formula | E49: Suggested quantity | F49: rounded | G49: Adjust quantities as required | I49: Average size (m²) | K49: Required Area
A50: General Purpose Office | B50: Kitchenette | C50: - | D50: =CHOOSE(Dashboard!$D$8,HIDE!H25,HIDE!I25,HIDE!J25) -> 0 | E50: =IF(HIDE!$E$25<1,1,HIDE!$E$25) -> 1 | F50: =ROUND(G50,0) -> 1 | G50: =Dashboard!R26 -> 1 | H50: x | I50: =Dashboard!T26 -> 15 | J50: = | K50: =F50*I50 -> 15
B51: Equipment Area | C51: - | D51: =CHOOSE(Dashboard!$D$8,HIDE!H26,HIDE!I26,HIDE!J26) -> 1.8 | E51: =ROUND($I$12*D51/100,0) -> 2 | F51: =ROUND(G51,0) -> 2 | G51: =Dashboard!R27 -> 2 | H51: x | I51: =Dashboard!T27 -> 5 | J51: = | K51: 10
B52: Lockers Area (area is per FTE) | C52: - | D52: =CHOOSE(Dashboard!$D$8,HIDE!H27,HIDE!I27,HIDE!J27) -> 0 | E52: =SUM($I$12) -> 100 | F52: 100 | G52: =Dashboard!R28 -> 100 | H52: x | I52: =Dashboard!T28 -> 0.5 | J52: = | K52: 50
B53: Shared Storage | C53: - | D53: =CHOOSE(Dashboard!$D$8,HIDE!H28,HIDE!I28,HIDE!J28) -> 0.5 | E53: =ROUND($I$12*D53/100,0) -> 1 | F53: 1 | G53: =Dashboard!R29 -> 1 | H53: x | I53: =Dashboard!T29 -> 10 | J53: = | K53: 10
B54: Dedicated Server/Telecom Room - 1 per floor | C54: - | D54: =CHOOSE(Dashboard!$D$8,HIDE!H29,HIDE!I29,HIDE!J29) -> 0 | E54: 1 | F54: 1 | G54: =Dashboard!R30 -> 1 | H54: x | I54: =Dashboard!T30 -> 10 | J54: = | K54: 10
A55: Extra workpoints to support adjacent SPS population | B55: Phonebooth | C55: =F55 -> 0 | D55: =CHOOSE(Dashboard!$D$8,HIDE!H30,HIDE!I30,HIDE!J30) -> 6 | E55: =ROUND($I$15*D55/100,0) -> 0 | F55: 0 | G55: =Dashboard!R31 -> 0 | H55: x | I55: =Dashboard!T31 -> 5 | J55: = | K55: 0
B56: Lounge | C56: =SUM(F56)*10 -> 0 | D56: =CHOOSE(Dashboard!$D$8,HIDE!H31,HIDE!I31,HIDE!J31) -> 1 | E56: =ROUND($I$15*D56/100,0) -> 0 | F56: 0 | G56: =Dashboard!R32 -> 0 | H56: x | I56: =Dashboard!T32 -> 20 | J56: = | K56: 0
B57: Work Room | C57: =SUM(F57)*4 -> 0 | D57: =CHOOSE(Dashboard!$D$8,HIDE!H32,HIDE!I32,HIDE!J32) -> 2 | E57: =ROUND($I$15*D57/100,0) -> 0 | F57: 0 | G57: =Dashboard!R33 -> 0 | H57: x | I57: =Dashboard!T33 -> 15 | J57: = | K57: 0
B58: Kitchenette | C58: - | D58: =CHOOSE(Dashboard!$D$8,HIDE!H33,HIDE!I33,HIDE!J33) -> 0 | E58: 0 | F58: 0 | G58: =Dashboard!R34 -> 0 | H58: x | I58: =Dashboard!T34 -> 15 | J58: = | K58: 0
B59: Lockers Area (area is per FTE) | C59: - | D59: =CHOOSE(Dashboard!$D$8,HIDE!H34,HIDE!I34,HIDE!J34) -> 0 | E59: =SUM($I$15) -> 0 | F59: 0 | G59: =Dashboard!R35 -> 0 | H59: x | I59: =Dashboard!T35 -> 0.5 | J59: = | K59: 0
A60: Other | B60: Custom support space | C60: - | D60: =CHOOSE(Dashboard!$D$8,HIDE!H35,HIDE!I35,HIDE!J35) -> 0 | E60: 1 | F60: 1 | G60: =Dashboard!R36 -> 1 | H60: x | I60: =Dashboard!T36 -> 7.08 | J60: = | K60: =F60*I60 -> 7.08
B61: Custom Workpoint | C61: - | D61: =CHOOSE(Dashboard!$D$8,HIDE!H36,HIDE!I36,HIDE!J36) -> 0 | E61: 0 | F61: 0 | G61: =Dashboard!R37 -> 0 | H61: x | I61: =Dashboard!T37 -> 0 | J61: = | K61: =F61*I61 -> 0
J62: Total space for support spaces | K62: =SUM(K50:K61) -> 102.08
A64: SURPLUS/DEFICIT AMOUNT
I66: SPACE PLANNING SUMMARY
A67: PLANNING SPACE | J67: = | K67: =I21 -> 708
A68: TOTAL INDIVIDUAL WORKPOINT SPACE | J68: = | K68: =K36 -> 380
A69: TOTAL COLLABORATIVE SPACE | J69: = | K69: =K47 -> 224
A70: TOTAL SUPPORT SPACE | J70: = | K70: =K62 -> 102.08
A71: REMAINING SURPLUS* / DEFICIT* | J71: = | K71: =SUM(K67)-(K68+K69+K70) -> 1.92
K72: *SIGNIFICANT SURPLUS WILL SHOW IN GREEN = ADD MORE WORKPOINTS
K73: *SIGNIFICANT DEFICIT WILL SHOW IN RED = REDUCE SOME WORKPOINTS

Sheet HIDE
A1: Formulas
A6: WORKPOINTS | C6: RANGE | E6: RANGE (ROUND) | G6: FOR 100 PEOPLE (1200m2u) | M6: SUGGESTED SIZE | N6: MAX SIZE
C7: LOW | D7: HIGH | E7: LOW | F7: HIGH | G7: MINIMUM | H7: AUTONOMOUS | I7: BALANCED | J7: INTERACTIVE | K7: MAXIMUM
A8: Primary Individual Open | B8: Typical Workstation | C8: =Calculations!$I$12*0.12 -> 12 | D8: =Calculations!$I$12*0.65 -> 65 | E8: =ROUND(C8,0) -> 12 | F8: =ROUND(D8,0) -> 65 | G8: 12 | H8: 58 | I8: 40 | J8: 25 | K8: 65 | M8: 3.5 | N8: 4.5 | O8: Typical Workstation
B9: Touchdown | C9: =Calculations!$I$12*0.08 -> 8 | D9: =Calculations!$I$12*0.3 -> 30 | E9: =ROUND(C9,0) -> 8 | F9: 30 | G9: 8 | H9: 15 | I9: 18 | J9: 20 | K9: 30 | M9: 1.5 | N9: 2.5 | O9: Touchdown
B10: Focus Pod | C10: =Calculations!$I$12*0.02 -> 2 | D10: =Calculations!$I$12*0.12 -> 12 | E10: 2 | F10: 12 | G10: 2 | H10: 8 | I10: 8 | J10: 6 | K10: 12 | M10: 4 | N10: 5 | O10: Focus Pod
A11: Primary Individual Enclosed | B11: Focus Room | C11: =Calculations!$I$12*0.04 -> 4 | D11: =Calculations!$I$12*0.12 -> 12 | E11: 4 | F11: 12 | G11: 4 | H11: 9 | I11: 8 | J11: 6 | K11: 12 | M11: 7.5 | N11: 10 | O11: Focus Room
B12: Ministerial Dedicated (Deputy Head or Minister) total includes 9m2 washroom. | C12: =Calculations!$I$12*0 -> 0 | D12: =Calculations!$I$12*0 -> 0 | E12: 0 | F12: 0 | M12: 29 | N12: 29 | O12: Ministerial Dedicated (Deputy Head or Minister) total includes 9m2 washroom.
B13: Study (3m2 per occupant, min. 10 occupants) | C13: =MIN(Calculations!$I$12*0.068,Calculations!$I$12*0.1) -> 6.8 | D13: =(Calculations!$I$12*0.2) -> 20 | E13: 7 | F13: 20 | G13: 0/10 | K13: 20 | M13: 3 | N13: 4 | O13: Study (3m2 per occupant, min. 10 occupants)
A14: Secondary Individual | B14: Reflection Point | C14: =Calculations!$I$12*0.01 -> 1 | D14: =Calculations!$I$12*0.04 -> 4 | E14: 1 | F14: 4 | G14: 2 | H14: 4 | I14: 4 | J14: 4 | K14: 6 | M14: 5 | N14: 5 | O14: Reflection Point
B15: Active Workstation | C15: =Calculations!$I$12*0 -> 0 | D15: =Calculations!$I$12*0.04 -> 4 | E15: 0 | F15: 4 | G15: 0 | H15: 1 | I15: 1 | J15: 1 | K15: 4 | M15: 5 | N15: 5 | O15: Active Workstation
B16: Phonebooth | C16: =Calculations!$I$12*0.04 -> 4 | D16: =Calculations!$I$12*0.08 -> 8 | E16: 4 | F16: 8 | G16: 4 | H16: 6 | I16: 6 | J16: 6 | K16: 8 | M16: 5 | N16: 5 | O16: Phonebooth | P16: *DATA SHEETS - 3m2 is ok for furniture
A17: Collaborative Open | B17: Chat Point | C17: =Calculations!$I$12*0.01 -> 1 | D17: =Calculations!$I$12*0.05 -> 5 | E17: 1 | F17: 5 | G17: 1 | H17: 1 | I17: 2 | J17: 3.5 | K17: 5 | M17: 3 | N17: 8 | O17: Chat Point
B18: Huddle | C18: =Calculations!$I$12*0.01 -> 1 | D18: =Calculations!$I$12*0.06 -> 6 | E18: 1 | F18: 6 | G18: 1 | H18: 2 | I18: 2.5 | J18: 4 | K18: 6 | M18: 8 | N18: 12 | O18: Huddle
B19: Teaming Area | C19: =Calculations!$I$12*0.01 -> 1 | D19: =Calculations!$I$12*0.04 -> 4 | E19: 1 | F19: 4 | G19: 1 | H19: 1 | I19: 2 | J19: 3.6 | K19: 4 | M19: 15 | N19: 25 | O19: Teaming Area
B20: Lounge | C20: =Calculations!$I$12*0.01 -> 1 | D20: =Calculations!$I$12*0.02 -> 2 | E20: 1 | F20: 2 | G20: 1 | H20: 1 | I20: 1 | J20: 1 | K20: 2 | M20: 20 | N20: 35 | O20: Lounge
A21: Collaborative Enclosed | B21: Work Room | C21: =Calculations!$I$12*0.02 -> 2 | D21: =Calculations!$I$12*0.06 -> 6 | E21: 2 | F21: 6 | G21: 2 | H21: 2 | I21: 3.8 | J21: 5 | K21: 6 | M21: 15 | N21: 20 | O21: Work Room
B22: Project Room | C22: =Calculations!$I$12*0 -> 0 | D22: =Calculations!$I$12*0.06 -> 6 | E22: 0 | F22: 6 | G22: 0 | H22: 1 | I22: 1.8 | J22: 3 | K22: 6 | M22: 20 | N22: 30 | O22: Project Room
B23: Medium Meeting Room | C23: =Calculations!$I$12*0.01 -> 1 | D23: =Calculations!$I$12*0.025 -> 2.5 | E23: 1 | F23: 3 | G23: 1 | H23: 1.8 | I23: 1.8 | J23: 1.8 | K23: 3 | M23: 30 | N23: 40 | O23: Medium Meeting Room
B24: Large Meeting Room | C24: =Calculations!$I$12*0 -> 0 | D24: =Calculations!$I$12*0.02 -> 2 | E24: 0 | F24: 2 | G24: 0 | H24: 0.8 | I24: 0.8 | J24: 0.8 | K24: 2 | M24: 60 | N24: 75 | O24: Large Meeting Room
A25: General Purpose Office | B25: Kitchenette | C25: =Calculations!$I$12*0.008 -> 0.8 | E25: 1 | O25: Kitchenette
B26: Equipment Area | C26: =Calculations!$I$12*0.01 -> 1 | D26: =Calculations!$I$12*0.02 -> 2 | E26: 1 | F26: 2 | H26: 1.8 | I26: 1.8 | J26: 1.8 | M26: 5 | N26: 10 | O26: Equipment Area
B27: Lockers (area is per FTE) | C27: =Calculations!$I$12*0.5 -> 50 | D27: =Calculations!$I$12*1.25 -> 125 | E27: 50 | F27: 125 | M27: 0.5 | O27: Lockers (area is per FTE)
B28: Shared Storage | C28: =Calculations!$I$12*0.005 -> 0.5 | D28: =Calculations!$I$12*0.02 -> 2 | E28: 1 | F28: 2 | H28: 0.5 | I28: 0.5 | J28: 0.5 | M28: 10 | N28: 15 | O28: Shared Storage
B29: Dedicated Server/Telecom Room - 1 per floor | M29: 10 | O29: Dedicated Server/Telecom Room - 1 per floor
A30: Extra workpoints to support adjacent SPS population | B30: Phonebooth | C30: =Calculations!$I$15*0.04 -> 0 | D30: =Calculations!$I$15*0.08 -> 0 | E30: 0 | F30: 0 | G30: 4 | H30: 6 | I30: 6 | J30: 6 | K30: 8 | M30: 5 | N30: 5 | O30: Phonebooth
B31: Lounge | C31: =Calculations!$I$15*0.01 -> 0 | D31: =Calculations!$I$15*0.02 -> 0 | E31: 0 | F31: 0 | G31: 1 | H31: 1 | I31: 1 | J31: 1 | K31: 2 | M31: 20 | N31: 35 | O31: Lounge
B32: Work Room | C32: =Calculations!$I$15*0.02 -> 0 | D32: =Calculations!$I$15*0.06 -> 0 | E32: 0 | F32: 0 | G32: 2 | H32: 2 | I32: 3.8 | J32: 5 | K32: 6 | M32: 15 | N32: 20 | O32: Work Room
B33: Kitchenette | C33: 0 | E33: 0 | O33: Kitchenette
B34: Lockers Area (area is per FTE) | C34: =Calculations!$I$15*0.5 -> 0 | D34: =Calculations!$I$15*1.25 -> 0 | E34: 0 | F34: 0 | M34: 0.5 | O34: Lockers (area is per FTE)
A35: Other | B35: Custom support space | C35: =Calculations!$I$21*0 -> 0 | D35: =Calculations!$I$21*0.015 -> 10.62 | E35: 0 | F35: 11
B36: Custom Workpoint | C36: =Calculations!$I$12*0 -> 0 | D36: =Calculations!$I$12*0 -> 0 | E36: 0 | F36: 0 | O36: Custom Collaborative Workpoint 1
B37: Average size | C37: 0 | D37: =Calculations!$I$21*1.5% -> 10.62 | E37: =ROUND(C37,0) -> 0 | F37: =ROUND(D37,1) -> 10.6
B39: NOTES - non-compliance | O39: NOTES - non-compliance
B40: Kitchenettes: | E40: Under 1 - Non-compliant | G40: NO | O40: Kitchenettes:
E41: Over recommended amout - Non compliant (cost implications)
E42: Under 50 FTEs, kitchenette size changes to 10m2
B43: Custom workpoints | E43: Always non-compliant (to avoir "rigging" the system) | O43: Custom workpoints
B44: Dedicated Server Room | E44: Set at 1, max of 2 | G44: NO | O44: Dedicated Server Room
B45: Equipment Areas | E45: Set at 1 per 500m2 | O45: Equipment Areas
B46: Study | E46: minimum 10, recommends 1 at 1800m2 or higher | O46: Study
B47: COPY ALL COMMENTS TO B & I Sheets | O47: COPY ALL COMMENTS TO B & I Sheets
B49: Questions: | O49: Questions:
B50: Do we want to lock sizes?, could use custom workpoint if different size required | O50: Do we want to lock sizes?, could use custom workpoint if different size required
B51: Comments in pop-ups or off to the side? | O51: Comments in pop-ups or off to the side?
B52: Point d'atterissage? | O52: Point d'atterissage?
B55: Meeting with Dan | O55: Meeting with Dan
B56: language | O56: language
B57: Can consultants have SAS Calculator | O57: Can consultants have SAS Calculator
B58: Non-compliant or Non-Standard? | O58: Non-compliant or Non-Standard?
B59: *Please note that the following Space distribution tool is intended to be used on a floor by floor basis. For any other type of distributions, please contact ____________
B60: GCworkplace General-Purpose Office Space Calculactor

Sheet Appendix A - Workpoints
H1: Back to 'About the Workbook'
B3: Name | C3: Function | E3: Suggested Occupancy | F3: Visual Privacy | G3: Acoustic Privacy | H3: Avg. Size | I3: Recommended Zone
A4: Work Point
A6: Primary Individual Open | B6: Workstation | C6: Mid-long term work space with access to others | E6: 1 | F6: Low-Med | G6: Low | H6: 3.5 | I6: Quiet
B7: Touchdown | C7: Short-term landing between other activities | E7: 1 | F7: Low | G7: Low | H7: 1.5 | I7: Any
B8: Focus Pod | C8: Mid-long term focused work | E8: 1 | F8: High | G8: Med | H8: 4 | I8: Quiet/Transitional
A9: Primary Individual Enclosed | B9: Focus Room | C9: Mid-long term focused work | E9: 1 | F9: Med-High | G9: High | H9: 7.5m² | I9: Quiet
B10: Ministerial Dedicated (Deputy Head or Minister) total includes 9m2 washroom. | C10: Dedicated office (including 9m2 washroom) for a Minister | E10: 1 | F10: Med - High | G10: Med - High | H10: 29m² | I10: Quiet
B11: Study | C11: Shared quiet room, to be combined in groups of minimum 6 users. Total area = 2.5m² per number of users. | E11: 1 | F11: Low-Med | G11: Low | H11: 3 | I11: Quiet
A12: Secondary Individual | B12: Reflection Point | C12: Refuge for rejuvenation and wellness | E12: 1 | F12: Med- High | G12: Med- High | H12: 5 | I12: Transitional
B13: Active Workstation | C13: Treadmill or stationary bicycle with computer station | E13: 1 | F13: Med- High | G13: Med- High | H13: 5 | I13: Interactive / Transitional
B14: Phonebooth | C14: Enclosed or semi-enclosed area for phone calls | E14: 1 | F14: Med- High | G14: Med- High | H14: 5 | I14: Any
A15: Collaborative Open | B15: Chat Point | C15: Area for brief impromptu conversations | E15: 4 | F15: Low | G15: Low | H15: 3 m² | I15: Interactive
B16: Huddle | C16: Informal short-mid length meeting area, open or semi-enclosed | E16: 4 | F16: Low- Med | G16: Low- Med | H16: 8 | I16: Interactive / Transitional
B17: Teaming Area | C17: Informal area to support team work and idea generation | E17: 10 | F17: Low- Med | G17: Low- Med | H17: 15 | I17: Interactive / Transitional
B18: Lounge | C18: Open area with furniture for dining and/or social interaction | E18: 10+ | F18: Low | G18: Low | H18: 20 | I18: Interactive
A19: Collaborative Enclosed | B19: Work Room | C19: Enclosed room for short-mid- term team work or meetings | E19: 4 | F19: Med- High | G19: High | H19: 15 | I19: Transitional
B20: Project Room | C20: Enclosed room for longer-term project teams to assemble | E20: 6+ | F20: Med- High | G20: High | H20: 20 | I20: Interactive / Transitional
B21: Medium Meeting Room | C21: Enclosed room for short-mid- term team work or meetings | E21: 12 | F21: Med- High | G21: High | H21: 30 m² | I21: Transitional
B22: Large Meeting Room | C22: Enclosed room for formal meetings and presentations | E22: 20+ | F22: Med- High | G22: High | H22: 60 m² | I22: Interactive / Transitional
A23: Support Space | B23: Kitchenette | C23: Kitchen millwork and appliances only - to be combined with a Lounge to include seating | E23: N/A | F23: Med | G23: Med | H23: 15 | I23: Interactive
B24: Equipment | C24: Business centre and printers | E24: N/A | F24: Low | G24: Low | H24: 5 m² | I24: Transitional
B25: Lockers | C25: Individual storage lockers in centralized areas | E25: N/A | F25: Low | G25: Low | H25: 0.5m² per FTE | I25: Transitional
B26: Shared Storage | C26: Open or enclosed space for shared resources or coat storage | E26: N/A | F26: Low | G26: Low | H26: 10 m² | I26: Transitional
B27: Dedicated Telecommunications Room | C27: Enclosed room for telecommunications systems to be accessible from outside secure zone off elevator lobby | E27: N/A | F27: N/A | G27: N/A | H27: 10 m² | I27: N/A
